fUSD/lending_fUSD_20241127
["ID","MTS","AMOUNT","RATE_DAILY","PERIOD"]
[343560161,1732722656913,-150.0,9.908e-05,2]
[343560162,1732722656923,-500.0,9.909e-05,2]
[343560163,1732722656932,-500.0,9.909e-05,2]
[343560164,1732722656941,-150.0,9.909e-05,2]
[343560165,1732722656951,-500.0,9.909e-05,2]
[343560166,1732722656960,-500.0,9.909e-05,2]
[343560167,1732722656969,-150.0,9.911e-05,2]
[343560168,1732722656979,-150.0,9.913e-05,2]
[343560169,1732722656988,-150.0,9.915e-05,2]
[343560170,1732722656997,-150.0,9.916e-05,2]
[343560171,1732722657007,-150.0,9.916e-05,2]
[343560172,1732722657018,-150.0,9.916e-05,2]
[343560173,1732722657027,-150.0,9.919e-05,2]
[343560174,1732722657036,-150.0,9.919e-05,2]
[343560175,1732722657045,-150.0,9.919e-05,2]
[343560176,1732722657055,-150.0,9.922e-05,2]
[343560177,1732722657064,-150.0,9.923e-05,2]
[343560178,1732722657073,-150.0,9.923e-05,2]
[343560179,1732722657083,-150.0,9.924e-05,2]
[343560180,1732722657092,-150.0,9.924e-05,2]
[343560181,1732722657101,-150.0,9.926e-05,2]
[343560182,1732722657112,-150.0,9.927e-05,2]
[343560183,1732722657122,-150.0,9.928e-05,2]
[343560184,1732722657131,-150.0,9.928e-05,2]
[343560185,1732722657140,-150.0,9.93e-05,2]
[343560186,1732722657149,-150.0,9.93e-05,2]
[343560187,1732722657159,-150.0,9.931e-05,2]
[343560188,1732722657168,-150.0,9.932e-05,2]
[343560189,1732722657177,-150.0,9.932e-05,2]
[343560190,1732722657186,-150.0,9.935e-05,2]
[343560191,1732722657195,-150.0,9.939e-05,2]
[343560192,1732722657205,-150.0,9.941e-05,2]
[343560193,1732722657214,-150.0,9.941e-05,2]
[343560194,1732722657224,-150.0,9.942e-05,2]
[343560195,1732722657233,-150.0,9.945e-05,2]
[343560196,1732722657242,-150.0,9.949e-05,2]
[343560197,1732722657251,-150.0,9.95e-05,2]
[343560198,1732722657261,-150.0,9.951e-05,2]
[343560199,1732722657270,-150.0,9.953e-05,2]
[343560200,1732722657279,-150.0,9.953e-05,2]
[343560201,1732722657288,-150.0,9.953e-05,2]
[343560202,1732722657297,-150.0,9.953e-05,2]
[343560203,1732722657307,-154.98,9.955e-05,2]
[343560204,1732722657316,-150.0,9.955e-05,2]
[343560205,1732722657325,-651.53,9.956e-05,2]
[343560206,1732722657334,-500.0,9.956e-05,2]
[343560207,1732722657343,-615.36,9.956e-05,2]
[343560208,1732722657352,-500.0,9.956e-05,2]
[343560209,1732722657363,-500.0,9.956e-05,2]
[343560210,1732722657372,-500.0,9.956e-05,2]
[343560211,1732722657381,-500.0,9.956e-05,2]
[343560212,1732722657391,-4649.27,9.956e-05,2]
[343560213,1732722657400,-500.0,9.956e-05,2]
[343560214,1732722657408,-594.94,9.956e-05,2]
[343560215,1732722657422,-1939.22,9.956e-05,2]
[343560216,1732722657431,-408.07,9.956e-05,2]
[343560217,1732722657439,-500.0,9.956e-05,2]
[343560218,1732722657448,-500.0,9.956e-05,2]
[343560219,1732722657459,-500.0,9.956e-05,2]
[343560220,1732722657469,-500.0,9.956e-05,2]
[343560221,1732722657479,-500.0,9.956e-05,2]
[343560222,1732722657490,-500.0,9.956e-05,2]
[343560223,1732722657499,-500.0,9.956e-05,2]
[343560224,1732722657508,-500.0,9.956e-05,2]
[343560225,1732722657517,-500.0,9.956e-05,2]
[343560226,1732722657527,-500.0,9.956e-05,2]
[343560227,1732722657536,-500.0,9.956e-05,2]
[343560228,1732722657546,-500.0,9.956e-05,2]
[343560229,1732722657555,-500.0,9.956e-05,2]
[343560230,1732722657564,-500.0,9.956e-05,2]
[343560231,1732722657573,-500.0,9.956e-05,2]
[343560232,1732722657583,-500.0,9.956e-05,2]
[343560233,1732722657592,-500.0,9.956e-05,2]
[343560234,1732722657602,-150.0,9.959e-05,2]
[343560235,1732722657613,-150.0,9.96e-05,2]
[343560236,1732722657622,-150.0,9.96e-05,2]
[343560237,1732722657631,-150.0,9.961e-05,2]
[343560238,1732722657641,-150.0,9.962e-05,2]
[343560239,1732722657650,-150.0,9.964e-05,2]
[343560240,1732722657660,-150.0,9.964e-05,2]
[343560241,1732722657669,-150.0,9.97e-05,2]
[343560242,1732722657678,-150.0,9.972e-05,2]
[343560243,1732722657688,-4704.0,9.973e-05,2]
[343560244,1732722657697,-424.61634509,9.974e-05,2]
[343560245,1732722657707,-150.0,9.976e-05,2]
[343560246,1732722657717,-150.0,9.98e-05,2]
[343560247,1732722657728,-150.0,9.983e-05,2]
[343560248,1732722657738,-150.0,9.985e-05,2]
[343560249,1732722657747,-150.0,9.986e-05,2]
[343560250,1732722657756,-500.0,9.988e-05,2]
[343560251,1732722657765,-500.0,9.988e-05,2]
[343560252,1732722657774,-279.52,9.988e-05,2]
[343560253,1732722657784,-500.0,9.988e-05,2]
[343560254,1732722657793,-500.0,9.988e-05,2]
[343560255,1732722657803,-2000.0,9.988e-05,2]
[343560256,1732722657812,-609.44,9.988e-05,2]
[343560257,1732722657821,-500.0,9.988e-05,2]
[343560258,1732722657831,-500.0,9.988e-05,2]
[343560259,1732722657841,-469.89550498,9.988e-05,2]
[343560260,1732722657849,-500.0,9.988e-05,2]
[343560261,1732722657861,-500.0,9.988e-05,2]
[343560262,1732722657870,-500.0,9.988e-05,2]
[343560263,1732722657880,-500.0,9.988e-05,2]
[343560264,1732722657890,-500.0,9.988e-05,2]
[343560265,1732722657899,-500.0,9.988e-05,2]
[343560266,1732722657908,-500.0,9.988e-05,2]
[343560267,1732722657918,-194.32,9.988e-05,2]
[343560268,1732722657927,-342.55,9.988e-05,2]
[343560269,1732722657936,-554.69,9.988e-05,2]
[343560270,1732722657946,-559.07,9.988e-05,2]
[343560271,1732722657955,-500.0,9.988e-05,2]
[343560272,1732722657966,-500.0,9.988e-05,2]
[343560273,1732722657977,-500.0,9.988e-05,2]
[343560274,1732722657987,-500.0,9.988e-05,2]
[343560275,1732722657998,-500.0,9.988e-05,2]
[343560276,1732722658007,-500.0,9.988e-05,2]
[343560277,1732722658017,-500.0,9.988e-05,2]
[343560278,1732722658026,-500.0,9.988e-05,2]
[343560279,1732722658035,-500.0,9.989e-05,2]
[343560280,1732722658045,-500.0,9.989e-05,2]
[343560281,1732722658055,-392.55,9.989e-05,2]
[343560282,1732722658065,-500.0,9.989e-05,2]
[343560283,1732722658074,-500.0,9.989e-05,2]
[343560284,1732722658084,-559.32,9.989e-05,2]
[343560285,1732722658093,-500.0,9.989e-05,2]
[343560286,1732722658102,-500.0,9.989e-05,2]
[343560287,1732722658116,-714.46,9.989e-05,2]
[343560288,1732722658131,-150.0,9.989e-05,2]
[343560289,1732722658140,-500.0,9.989e-05,2]
[343560290,1732722658150,-500.0,9.989e-05,2]
[343560291,1732722658160,-259.68,9.989e-05,2]
[343560292,1732722658169,-4542.65,9.989e-05,2]
[343560293,1732722658179,-8817.3,9.989e-05,2]
[343560294,1732722658188,-7494.45,9.989e-05,2]
[343560295,1732722658198,-150.0,9.989e-05,2]
[343560296,1732722658208,-500.0,9.989e-05,2]
[343560297,1732722658217,-500.0,9.989e-05,2]
[343560298,1732722658227,-500.0,9.989e-05,2]
[343560299,1732722658237,-500.0,9.989e-05,2]
[343560300,1732722658247,-500.0,9.989e-05,2]
[343560301,1732722658256,-7019.81824962,9.99e-05,2]
[343560302,1732722658266,-7019.81824958,9.99e-05,2]
[343560303,1732722658275,-7019.81824958,9.99e-05,2]
[343560304,1732722658286,-7019.81824958,9.99e-05,2]
[343560305,1732722658295,-7019.81824958,9.99e-05,2]
[343560306,1732722658305,-7019.81824958,9.99e-05,2]
[343560307,1732722658316,-7019.81824958,9.99e-05,2]
[343560308,1732722658326,-7019.81824958,9.99e-05,2]
[343560309,1732722658336,-7019.81824958,9.99e-05,2]
[343560310,1732722658346,-150.0,9.992e-05,2]
[343560311,1732722658355,-150.0,9.994e-05,2]
[343560312,1732722658368,-150.0,9.994e-05,2]
[343560313,1732722658378,-150.0,9.995e-05,2]
[343560314,1732722658388,-150.0,9.995e-05,2]
[343560315,1732722658398,-150.0,9.995e-05,2]
[343560316,1732722658408,-536.28,9.996e-05,2]
[343560317,1732722658421,-500.0,9.996e-05,2]
[343560318,1732722658431,-500.0,9.996e-05,2]
[343560319,1732722658441,-402.8,9.996e-05,2]
[343560320,1732722658451,-500.0,9.996e-05,2]
[343560321,1732722658462,-500.0,9.996e-05,2]
[343560322,1732722658472,-500.0,9.996e-05,2]
[343560323,1732722658482,-543.49,9.996e-05,2]
[343560324,1732722658493,-500.0,9.996e-05,2]
[343560325,1732722658503,-500.0,9.996e-05,2]
[343560326,1732722658513,-14549.42,9.996e-05,2]
[343560327,1732722658522,-2841.63,9.996e-05,2]
[343560328,1732722658532,-6262.92,9.996e-05,2]
[343560329,1732722658542,-655.08,9.996e-05,2]
[343560330,1732722658551,-500.0,9.996e-05,2]
[343560331,1732722658561,-500.0,9.996e-05,2]
[343560332,1732722658571,-500.0,9.996e-05,2]
[343560333,1732722658582,-500.0,9.997e-05,2]
[343560334,1732722658592,-532.28,9.997e-05,2]
[343560335,1732722658602,-500.0,9.997e-05,2]
[343560336,1732722658615,-500.0,9.997e-05,2]
[343560337,1732722658625,-500.0,9.997e-05,2]
[343560338,1732722658635,-500.0,9.997e-05,2]
[343560339,1732722658645,-500.0,9.997e-05,2]
[343560340,1732722658655,-500.0,9.997e-05,2]
[343560341,1732722658665,-500.0,9.997e-05,2]
[343560342,1732722658675,-651.53,9.997e-05,2]
[343560343,1732722658684,-500.0,9.997e-05,2]
[343560344,1732722658694,-500.0,9.997e-05,2]
[343560345,1732722658704,-174.6,9.997e-05,2]
[343560346,1732722658714,-500.0,9.997e-05,2]
[343560347,1732722658723,-500.0,9.997e-05,2]
[343560348,1732722658733,-500.0,9.997e-05,2]
[343560349,1732722658742,-615.36,9.997e-05,2]
[343560350,1732722658752,-577.10829522,9.997e-05,2]
[343560351,1732722658762,-554.69,9.997e-05,2]
[343560352,1732722658772,-500.0,9.997e-05,2]
[343560353,1732722658782,-500.0,9.997e-05,2]
[343560354,1732722658791,-559.07,9.997e-05,2]
[343560355,1732722658801,-500.0,9.997e-05,2]
[343560356,1732722658810,-500.0,9.997e-05,2]
[343560357,1732722658820,-500.0,9.997e-05,2]
[343560358,1732722658829,-500.0,9.997e-05,2]
[343560359,1732722658840,-500.0,9.997e-05,2]
[343560360,1732722658849,-4649.27,9.997e-05,2]
[343560361,1732722658861,-500.0,9.997e-05,2]
[343560362,1732722658871,-500.0,9.997e-05,2]
[343560363,1732722658880,-500.0,9.997e-05,2]
[343560364,1732722658891,-594.94,9.997e-05,2]
[343560365,1732722658900,-500.0,9.997e-05,2]
[343560366,1732722658911,-1939.22,9.997e-05,2]
[343560367,1732722658922,-487.08,9.997e-05,2]
[343560368,1732722658931,-563.67966055,9.997e-05,2]
[343560369,1732722658941,-223.9,9.997e-05,2]
[343560370,1732722658951,-500.0,9.997e-05,2]
[343560371,1732722658961,-150.0,9.997e-05,2]
[343560372,1732722658970,-500.0,9.997e-05,2]
[343560373,1732722658980,-500.0,9.997e-05,2]
[343560374,1732722658991,-543.49,9.997e-05,2]
[343560375,1732722659000,-500.0,9.997e-05,2]
[343560376,1732722659011,-500.0,9.997e-05,2]
[343560377,1732722659021,-500.0,9.997e-05,2]
[343560378,1732722659031,-4542.65,9.997e-05,2]
[343560379,1732722659041,-500.0,9.997e-05,2]
[343560380,1732722659050,-500.0,9.997e-05,2]
[343560381,1732722659060,-500.0,9.997e-05,2]
[343560382,1732722659069,-500.0,9.997e-05,2]
[343560383,1732722659079,-646.18371142,9.997e-05,2]
[343560384,1732722659088,-500.0,9.997e-05,2]
[343560385,1732722659098,-500.0,9.997e-05,2]
[343560386,1732722659107,-7494.45,9.997e-05,2]
[343560387,1732722659119,-8817.3,9.997e-05,2]
[343560388,1732722659129,-500.0,9.997e-05,2]
[343560389,1732722659138,-14549.42,9.997e-05,2]
[343560390,1732722659148,-500.0,9.997e-05,2]
[343560391,1732722659158,-500.0,9.997e-05,2]
[343560392,1732722659168,-2841.63,9.997e-05,2]
[343560393,1732722659178,-500.0,9.997e-05,2]
[343560394,1732722659188,-500.0,9.997e-05,2]
[343560395,1732722659198,-6262.92,9.997e-05,2]
[343560396,1732722659207,-500.0,9.997e-05,2]
[343560397,1732722659217,-500.0,9.997e-05,2]
[343560398,1732722659227,-655.08,9.997e-05,2]
[343560399,1732722659237,-500.0,9.997e-05,2]
[343560400,1732722659247,-500.0,9.997e-05,2]
[343560401,1732722659257,-500.0,9.997e-05,2]
[343560402,1732722659268,-500.0,9.997e-05,2]
[343560403,1732722659279,-500.0,9.997e-05,2]
[343560404,1732722659288,-500.0,9.997e-05,2]
[343560405,1732722659298,-500.0,9.997e-05,2]
[343560406,1732722659308,-500.0,9.997e-05,2]
[343560407,1732722659318,-500.0,9.997e-05,2]
[343560408,1732722659327,-500.0,9.997e-05,2]
[343560409,1732722659337,-500.0,9.997e-05,2]
[343560410,1732722659347,-500.0,9.998e-05,2]
[343560411,1732722659356,-500.0,9.998e-05,2]
[343560412,1732722659368,-500.0,9.998e-05,2]
[343560413,1732722659377,-500.0,9.998e-05,2]
[343560414,1732722659387,-500.0,9.998e-05,2]
[343560415,1732722659397,-252.14,9.998e-05,2]
[343560416,1732722659407,-151.0,9.998e-05,2]
[343560417,1732722659423,-151.0,9.998e-05,2]
[343560418,1732722659433,-500.0,9.998e-05,2]
[343560419,1732722659442,-515.63,9.998e-05,2]
[343560420,1732722659451,-500.0,9.998e-05,2]
[343560421,1732722659462,-500.0,9.998e-05,2]
[343560422,1732722659472,-500.0,9.998e-05,2]
[343560423,1732722659482,-295.55,9.998e-05,2]
[343560424,1732722659493,-500.0,9.998e-05,2]
[343560425,1732722659505,-500.0,9.998e-05,2]
[343560426,1732722659515,-500.0,9.998e-05,2]
[343560427,1732722659524,-500.0,9.998e-05,2]
[343560428,1732722659534,-500.0,9.998e-05,2]
[343560429,1732722659544,-463.17,9.998e-05,2]
[343560430,1732722659553,-500.0,9.998e-05,2]
[343560431,1732722659563,-500.0,9.998e-05,2]
[343560432,1732722659572,-500.0,9.998e-05,2]
[343560433,1732722659583,-150.0,9.998e-05,2]
[343560434,1732722659594,-402.38,9.998e-05,2]
[343560435,1732722659605,-637.03,9.998e-05,2]
[343560436,1732722659617,-466.32,9.998e-05,2]
[343560437,1732722659627,-500.0,9.998e-05,2]
[343560438,1732722659636,-500.0,9.998e-05,2]
[343560439,1732722659646,-336.41,9.998e-05,2]
[343560440,1732722659655,-150.0,9.998e-05,2]
[343560441,1732722659665,-651.53,9.998e-05,2]
[343560442,1732722659674,-651.53,9.998e-05,2]
[343560443,1732722659685,-651.53,9.998e-05,2]
[343560444,1732722659695,-651.53,9.998e-05,2]
[343560445,1732722659704,-500.0,9.998e-05,2]
[343560446,1732722659713,-500.0,9.998e-05,2]
[343560447,1732722659723,-500.0,9.998e-05,2]
[343560448,1732722659732,-500.0,9.998e-05,2]
[343560449,1732722659742,-500.0,9.998e-05,2]
[343560450,1732722659752,-335.44289316,9.998e-05,2]
[343560451,1732722659762,-500.0,9.998e-05,2]
[343560452,1732722659771,-500.0,9.998e-05,2]
[343560453,1732722659781,-500.0,9.998e-05,2]
[343560454,1732722659790,-500.0,9.998e-05,2]
[343560455,1732722659800,-500.0,9.998e-05,2]
[343560456,1732722659809,-500.0,9.998e-05,2]
[343560457,1732722659819,-500.0,9.998e-05,2]
[343560458,1732722659828,-500.0,9.998e-05,2]
[343560459,1732722659838,-500.0,9.998e-05,2]
[343560460,1732722659848,-500.0,9.998e-05,2]
[343560461,1732722659861,-615.36,9.998e-05,2]
[343560462,1732722659871,-615.36,9.998e-05,2]
[343560463,1732722659881,-615.36,9.998e-05,2]
[343560464,1732722659891,-615.36,9.998e-05,2]
[343560465,1732722659901,-554.69,9.998e-05,2]
[343560466,1732722659911,-554.69,9.998e-05,2]
[343560467,1732722659921,-554.69,9.998e-05,2]
[343560468,1732722659931,-500.0,9.998e-05,2]
[343560469,1732722659941,-500.0,9.998e-05,2]
[343560470,1732722659951,-500.0,9.998e-05,2]
[343560471,1732722659963,-500.0,9.998e-05,2]
[343560472,1732722659974,-500.0,9.998e-05,2]
[343560473,1732722659986,-500.0,9.998e-05,2]
[343560474,1732722659996,-500.0,9.998e-05,2]
[343560475,1732722660007,-559.07,9.998e-05,2]
[343560476,1732722660210,-559.07,9.998e-05,2]
[343560477,1732722660253,-559.07,9.998e-05,2]
[343560478,1732722660265,-500.0,9.998e-05,2]
[343560479,1732722660275,-500.0,9.998e-05,2]
[343560480,1732722660285,-500.0,9.998e-05,2]
[343560481,1732722660295,-500.0,9.998e-05,2]
[343560482,1732722660305,-500.0,9.998e-05,2]
[343560483,1732722660315,-500.0,9.998e-05,2]
[343560484,1732722660324,-500.0,9.998e-05,2]
[343560485,1732722660334,-500.0,9.998e-05,2]
[343560486,1732722660343,-500.0,9.998e-05,2]
[343560487,1732722660353,-500.0,9.998e-05,2]
[343560488,1732722660367,-500.0,9.998e-05,2]
[343560489,1732722660376,-500.0,9.998e-05,2]
[343560490,1732722660386,-500.0,9.998e-05,2]
[343560491,1732722660396,-500.0,9.998e-05,2]
[343560492,1732722660406,-500.0,9.998e-05,2]
[343560493,1732722660418,-560.76,9.998e-05,2]
[343560494,1732722660428,-4649.27,9.998e-05,2]
[343560495,1732722660438,-4649.27,9.998e-05,2]
[343560496,1732722660447,-4649.27,9.998e-05,2]
[343560497,1732722660459,-4649.27,9.998e-05,2]
[343560498,1732722660469,-500.0,9.998e-05,2]
[343560499,1732722660478,-500.0,9.998e-05,2]
[343560500,1732722660488,-500.0,9.998e-05,2]
[343560501,1732722660498,-500.0,9.998e-05,2]
[343560502,1732722660508,-500.0,9.998e-05,2]
[343560503,1732722660517,-500.0,9.998e-05,2]
[343560504,1732722660526,-500.0,9.998e-05,2]
[343560505,1732722660535,-245.82,9.998e-05,2]
[343560506,1732722660544,-594.94,9.998e-05,2]
[343560507,1732722660554,-594.94,9.998e-05,2]
[343560508,1732722660563,-594.94,9.998e-05,2]
[343560509,1732722660572,-594.94,9.998e-05,2]
[343560510,1732722660582,-500.0,9.998e-05,2]
[343560511,1732722660591,-500.0,9.998e-05,2]
[343560512,1732722660600,-500.0,9.998e-05,2]
[343560513,1732722660613,-1939.22,9.998e-05,2]
[343560514,1732722660623,-1939.22,9.998e-05,2]
[343560515,1732722660632,-1939.22,9.998e-05,2]
[343560516,1732722660642,-1939.22,9.998e-05,2]
[343560517,1732722660652,-500.0,9.998e-05,2]
[343560518,1732722660662,-343.40051389,9.998e-05,2]
[343560519,1732722660672,-500.0,9.998e-05,2]
[343560520,1732722660681,-500.0,9.998e-05,2]
[343560521,1732722660692,-500.0,9.998e-05,2]
[343560522,1732722660702,-500.0,9.998e-05,2]
[343560523,1732722660712,-500.0,9.998e-05,2]
[343560524,1732722660723,-500.0,9.998e-05,2]
[343560525,1732722660733,-500.0,9.998e-05,2]
[343560526,1732722660743,-543.49,9.998e-05,2]
[343560527,1732722660753,-543.49,9.998e-05,2]
[343560528,1732722660763,-543.49,9.998e-05,2]
[343560529,1732722660773,-500.0,9.998e-05,2]
[343560530,1732722660783,-500.0,9.998e-05,2]
[343560531,1732722660793,-500.0,9.998e-05,2]
[343560532,1732722660803,-165.22,9.998e-05,2]
[343560533,1732722660813,-500.0,9.998e-05,2]
[343560534,1732722660823,-422.91615044,9.998e-05,2]
[343560535,1732722660833,-500.0,9.998e-05,2]
[343560536,1732722660843,-365.1,9.998e-05,2]
[343560537,1732722660852,-4542.65,9.998e-05,2]
[343560538,1732722660865,-4542.65,9.998e-05,2]
[343560539,1732722660874,-4542.65,9.998e-05,2]
[343560540,1732722660884,-500.0,9.998e-05,2]
[343560541,1732722660893,-500.51,9.998e-05,2]
[343560542,1732722660903,-500.0,9.998e-05,2]
[343560543,1732722660912,-500.0,9.998e-05,2]
[343560544,1732722660922,-500.0,9.998e-05,2]
[343560545,1732722660931,-500.0,9.998e-05,2]
[343560546,1732722660941,-500.0,9.998e-05,2]
[343560547,1732722660950,-500.0,9.998e-05,2]
[343560548,1732722660960,-500.0,9.998e-05,2]
[343560549,1732722660969,-500.0,9.998e-05,2]
[343560550,1732722660979,-151.85,9.998e-05,2]
[343560551,1732722660988,-500.0,9.998e-05,2]
[343560552,1732722660998,-500.0,9.998e-05,2]
[343560553,1732722661007,-620.10125476,9.998e-05,2]
[343560554,1732722661018,-500.0,9.998e-05,2]
[343560555,1732722661027,-500.0,9.998e-05,2]
[343560556,1732722661036,-500.0,9.998e-05,2]
[343560557,1732722661045,-500.0,9.998e-05,2]
[343560558,1732722661055,-7494.45,9.998e-05,2]
[343560559,1732722661065,-8817.3,9.998e-05,2]
[343560560,1732722661075,-8817.3,9.998e-05,2]
[343560561,1732722661084,-8817.3,9.998e-05,2]
[343560562,1732722661094,-7494.45,9.998e-05,2]
[343560563,1732722661103,-7494.45,9.998e-05,2]
[343560564,1732722661120,-500.0,9.998e-05,2]
[343560565,1732722661130,-500.0,9.998e-05,2]
[343560566,1732722661139,-500.0,9.998e-05,2]
[343560567,1732722661149,-500.0,9.998e-05,2]
[343560568,1732722661158,-14549.42,9.998e-05,2]
[343560569,1732722661167,-14549.42,9.998e-05,2]
[343560570,1732722661177,-14549.42,9.998e-05,2]
[343560571,1732722661186,-14549.42,9.998e-05,2]
[343560572,1732722661196,-173.4,9.998e-05,2]
[343560573,1732722661205,-500.0,9.998e-05,2]
[343560574,1732722661214,-500.0,9.998e-05,2]
[343560575,1732722661223,-500.0,9.998e-05,2]
[343560576,1732722661233,-2841.63,9.998e-05,2]
[343560577,1732722661242,-2841.63,9.998e-05,2]
[343560578,1732722661252,-2841.63,9.998e-05,2]
[343560579,1732722661262,-2841.63,9.998e-05,2]
[343560580,1732722661271,-500.0,9.998e-05,2]
[343560581,1732722661281,-500.0,9.998e-05,2]
[343560582,1732722661290,-500.0,9.998e-05,2]
[343560583,1732722661299,-500.0,9.998e-05,2]
[343560584,1732722661310,-500.0,9.998e-05,2]
[343560585,1732722661320,-500.0,9.998e-05,2]
[343560586,1732722661329,-500.0,9.998e-05,2]
[343560587,1732722661339,-6262.92,9.998e-05,2]
[343560588,1732722661348,-6262.92,9.998e-05,2]
[343560589,1732722661363,-6262.92,9.998e-05,2]
[343560590,1732722661374,-6262.92,9.998e-05,2]
[343560591,1732722661383,-427.51,9.998e-05,2]
[343560592,1732722661393,-500.0,9.998e-05,2]
[343560593,1732722661402,-655.08,9.998e-05,2]
[343560594,1732722661413,-655.08,9.998e-05,2]
[343560595,1732722661425,-655.08,9.998e-05,2]
[343560596,1732722661434,-655.08,9.998e-05,2]
[343560597,1732722661444,-500.0,9.998e-05,2]
[343560598,1732722661453,-500.0,9.998e-05,2]
[343560599,1732722661464,-500.0,9.998e-05,2]
[343560600,1732722661474,-500.0,9.998e-05,2]
[343560601,1732722661484,-500.0,9.998e-05,2]
[343560602,1732722661496,-500.0,9.998e-05,2]
[343560603,1732722661507,-500.0,9.998e-05,2]
[343560604,1732722661517,-535.02,9.998e-05,2]
[343560605,1732722661527,-593.14,9.998e-05,2]
[343560606,1732722661536,-500.0,9.998e-05,2]
[343560607,1732722661546,-500.0,9.998e-05,2]
[343560608,1732722661556,-500.0,9.998e-05,2]
[343560609,1732722661565,-500.0,9.998e-05,2]
[343560610,1732722661575,-500.0,9.998e-05,2]
[343560611,1732722661584,-500.0,9.998e-05,2]
[343560612,1732722661596,-500.0,9.998e-05,2]
[343560613,1732722661606,-500.0,9.998e-05,2]
[343560614,1732722661620,-500.0,9.998e-05,2]
[343560615,1732722661629,-500.0,9.998e-05,2]
[343560616,1732722661638,-500.0,9.998e-05,2]
[343560617,1732722661648,-347.97,9.998e-05,2]
[343560618,1732722661657,-500.0,9.998e-05,2]
[343560619,1732722661666,-500.0,9.998e-05,2]
[343560620,1732722661675,-500.0,9.998e-05,2]
[343560621,1732722661686,-500.0,9.998e-05,2]
[343560622,1732722661697,-500.0,9.998e-05,2]
[343560623,1732722661707,-500.0,9.998e-05,2]
[343560624,1732722661716,-500.0,9.998e-05,2]
[343560625,1732722661727,-432.34,9.998e-05,2]
[343560626,1732722661737,-1099.79500478,9.999e-05,2]
[343560627,1732722661747,-2735.3138459,9.999e-05,2]
[343560628,1732722661757,-10384.638747,9.999e-05,2]
[343560629,1732722661767,-4210.0018656,9.999e-05,2]
[343560630,1732722661776,-500.0,9.999e-05,2]
[343560631,1732722661786,-509.08,9.999e-05,2]
[343560632,1732722661795,-154.67,9.999e-05,2]
[343560633,1732722661805,-151.0,9.999e-05,2]
[343560634,1732722661814,-151.0,9.999e-05,2]
[343560635,1732722661823,-500.0,9.999e-05,2]
[343560636,1732722661832,-341.65,9.999e-05,2]
[343560637,1732722661842,-1821.41420999,9.999e-05,2]
[343560638,1732722661851,-500.0,9.999e-05,2]
[343560639,1732722661864,-605.8114611,9.999e-05,2]
[343560640,1732722661873,-500.0,9.999e-05,2]
[343560641,1732722661882,-500.0,9.999e-05,2]
[343560642,1732722661891,-500.0,9.999e-05,2]
[343560643,1732722661900,-500.0,9.999e-05,2]
[343560644,1732722661910,-500.0,9.999e-05,2]
[343560645,1732722661920,-150.0,9.999e-05,2]
[343560646,1732722661930,-651.53,9.999e-05,2]
[343560647,1732722661939,-651.53,9.999e-05,2]
[343560648,1732722661949,-651.53,9.999e-05,2]
[343560649,1732722661958,-500.0,9.999e-05,2]
[343560650,1732722661967,-651.53,9.999e-05,2]
[343560651,1732722661976,-500.0,9.999e-05,2]
[343560652,1732722661985,-651.53,9.999e-05,2]
[343560653,1732722661995,-500.0,9.999e-05,2]
[343560654,1732722662005,-651.53,9.999e-05,2]
[343560655,1732722662015,-651.53,9.999e-05,2]
[343560656,1732722662024,-523.67,9.999e-05,2]
[343560657,1732722662033,-651.53,9.999e-05,2]
[343560658,1732722662043,-651.53,9.999e-05,2]
[343560659,1732722662053,-651.53,9.999e-05,2]
[343560660,1732722662062,-651.53,9.999e-05,2]